[Event "Early-Titled-Tuesday-Blitz-January-23-2024"]
[Site "Chess.com"]
[Date "2024.01.23"]
[Round "9"]
[White "luckyswitchback"]
[Black "ama18"]
[Result "0-1"]
[WhiteElo "2696"]
[BlackElo "2549"]
[TimeControl "180+1"]
[EndTime "9:45:44 PST"]
[Termination "ama18 won on time"]

1. e4 {[%clk 0:03:00.9]} 1... c5 {[%clk 0:02:59.5]} 2. Nf3 {[%clk 0:03:00.8]}
2... d6 {[%clk 0:02:59.2]} 3. Bb5+ {[%clk 0:03:00.4]} 3... Bd7 {[%clk
0:02:57.2]} 4. Bxd7+ {[%clk 0:03:00.5]} 4... Qxd7 {[%clk 0:02:57.2]} 5. c4
{[%clk 0:03:00.6]} 5... e5 {[%clk 0:02:55.2]} 6. Nc3 {[%clk 0:02:58.1]} 6... Nc6
{[%clk 0:02:55.8]} 7. d3 {[%clk 0:02:55.7]} 7... g6 {[%clk 0:02:55.9]} 8. h4
{[%clk 0:02:54.5]} 8... h5 {[%clk 0:02:54.8]} 9. a3 {[%clk 0:02:51]} 9... Bg7
{[%clk 0:02:53.3]} 10. Bg5 {[%clk 0:02:45.7]} 10... Nge7 {[%clk 0:02:50.6]} 11.
Bxe7 {[%clk 0:02:37.6]} 11... Nxe7 {[%clk 0:02:46.5]} 12. b4 {[%clk 0:02:37.7]}
12... O-O {[%clk 0:02:37.1]} 13. bxc5 {[%clk 0:02:20]} 13... dxc5 {[%clk
0:02:38]} 14. Nd5 {[%clk 0:02:20.6]} 14... Nc6 {[%clk 0:02:33.4]} 15. O-O {[%clk
0:02:18.6]} 15... f5 {[%clk 0:02:25.8]} 16. Qe2 {[%clk 0:02:08.7]} 16... b6
{[%clk 0:02:04]} 17. Rab1 {[%clk 0:02:03.2]} 17... Rae8 {[%clk 0:02:03.5]} 18.
a4 {[%clk 0:01:51.7]} 18... Qd8 {[%clk 0:01:41.2]} 19. exf5 {[%clk 0:01:31.5]}
19... Rxf5 {[%clk 0:01:37.5]} 20. g3 {[%clk 0:01:08.3]} 20... Ref8 {[%clk
0:01:33.1]} 21. Ng5 {[%clk 0:01:08.3]} 21... Nd4 {[%clk 0:01:31.1]} 22. Qd1
{[%clk 0:01:07.1]} 22... Rxg5 {[%clk 0:01:22.8]} 23. hxg5 {[%clk 0:01:06.5]}
23... Qxg5 {[%clk 0:01:23.5]} 24. Kg2 {[%clk 0:00:48.7]} 24... h4 {[%clk
0:01:21.7]} 25. a5 {[%clk 0:00:36.8]} 25... bxa5 {[%clk 0:00:49]} 26. Rb7 {[%clk
0:00:35.7]} 26... Rf3 {[%clk 0:00:21.9]} 27. Rb8+ {[%clk 0:00:04.4]} 27... Bf8
{[%clk 0:00:17.2]} 28. Qxf3 {[%clk 0:00:02.6]} 28... h3+ {[%clk 0:00:16.9]} 29.
Kxh3 {[%clk 0:00:01]} 29... Nxf3 {[%clk 0:00:17.6]} 30. Kg2 {[%clk 0:00:01.7]}
30... Nd4 {[%clk 0:00:16.1]} 31. Rh1 {[%clk 0:00:01.8]} 31... Ne6 {[%clk
0:00:10.7]} 32. Rb7 {[%clk 0:00:01.4]} 32... Bg7 {[%clk 0:00:10.2]} 33. Rb8+
{[%clk 0:00:01.4]} 33... Bf8 {[%clk 0:00:09.6]} 34. Rb7 {[%clk 0:00:01.7]} 34...
a4 {[%clk 0:00:10.1]} 35. Rbh7 {[%clk 0:00:01.2]} 35... Bg7 {[%clk 0:00:10.2]}
36. R7h4 {[%clk 0:00:01.1]} 36... Nd4 {[%clk 0:00:09.6]} 0-1

[Event "Early-Titled-Tuesday-Blitz-January-23-2024"]
[Site "Chess.com"]
[Date "2024.01.23"]
[Round "9"]
[White "azikom"]
[Black "HanSchut"]
[Result "1-0"]
[WhiteElo "2664"]
[BlackElo "2269"]
[TimeControl "180+1"]
[EndTime "9:45:45 PST"]
[Termination "azikom won on time"]

1. e4 {[%clk 0:03:00.4]} 1... c5 {[%clk 0:02:59.7]} 2. Nc3 {[%clk 0:02:57.1]}
2... Nc6 {[%clk 0:02:59.5]} 3. g3 {[%clk 0:02:55.6]} 3... g6 {[%clk 0:02:59.4]}
4. Bg2 {[%clk 0:02:56.5]} 4... Bg7 {[%clk 0:03:00]} 5. d3 {[%clk 0:02:56.7]}
5... e6 {[%clk 0:03:00.1]} 6. h4 {[%clk 0:02:56.8]} 6... Nge7 {[%clk 0:02:56.3]}
7. h5 {[%clk 0:02:56.2]} 7... d5 {[%clk 0:02:56.2]} 8. Nh3 {[%clk 0:02:50.1]}
8... Rb8 {[%clk 0:02:47.4]} 9. exd5 {[%clk 0:02:39.3]} 9... Nxd5 {[%clk
0:02:43.9]} 10. Nxd5 {[%clk 0:02:36.9]} 10... exd5 {[%clk 0:02:43.5]} 11. Nf4
{[%clk 0:02:37.3]} 11... d4 {[%clk 0:02:30.3]} 12. Bd2 {[%clk 0:02:24.8]} 12...
Qe7+ {[%clk 0:02:19.1]} 13. Kf1 {[%clk 0:02:23.3]} 13... Be6 {[%clk 0:01:58.7]}
14. Nxe6 {[%clk 0:02:19]} 14... Qxe6 {[%clk 0:01:54.6]} 15. a3 {[%clk
0:02:08.5]} 15... O-O {[%clk 0:01:52.2]} 16. Qf3 {[%clk 0:02:02.9]} 16... Ne5
{[%clk 0:01:45.7]} 17. Qd5 {[%clk 0:02:01.6]} 17... Qxd5 {[%clk 0:01:36.9]} 18.
Bxd5 {[%clk 0:02:00.8]} 18... b6 {[%clk 0:01:36.1]} 19. Re1 {[%clk 0:01:58.1]}
19... Rbd8 {[%clk 0:01:35.2]} 20. Bg2 {[%clk 0:01:58.4]} 20... Rfe8 {[%clk
0:01:29.7]} 21. Rh4 {[%clk 0:01:53.8]} 21... f5 {[%clk 0:01:05.7]} 22. hxg6
{[%clk 0:01:52.7]} 22... hxg6 {[%clk 0:01:04.4]} 23. Bg5 {[%clk 0:01:51]} 23...
Rc8 {[%clk 0:00:47.1]} 24. Bd5+ {[%clk 0:01:50.2]} 24... Nf7 {[%clk 0:00:44.5]}
25. Rxe8+ {[%clk 0:01:32.4]} 25... Rxe8 {[%clk 0:00:45.4]} 26. Bd2 {[%clk
0:01:31.7]} 26... Rd8 {[%clk 0:00:37.9]} 27. Ba2 {[%clk 0:01:28.3]} 27... Kf8
{[%clk 0:00:37.2]} 28. Rh7 {[%clk 0:01:26.3]} 28... Kg8 {[%clk 0:00:30.8]} 29.
Rh1 {[%clk 0:01:24.6]} 29... Re8 {[%clk 0:00:27.5]} 30. b4 {[%clk 0:01:21.6]}
30... Kf8 {[%clk 0:00:22.9]} 31. bxc5 {[%clk 0:01:20.5]} 31... bxc5 {[%clk
0:00:23.8]} 32. Bb3 {[%clk 0:01:19.3]} 32... Ne5 {[%clk 0:00:23.8]} 33. Bf4
{[%clk 0:01:15.4]} 33... Nf7 {[%clk 0:00:10.3]} 34. Kg2 {[%clk 0:01:13.3]} 34...
g5 {[%clk 0:00:10.6]} 35. Bd2 {[%clk 0:01:00.9]} 35... Re2 {[%clk 0:00:10.2]}
36. Rd1 {[%clk 0:00:55.9]} 36... g4 {[%clk 0:00:09.7]} 37. Kf1 {[%clk
0:00:50.1]} 37... Re8 {[%clk 0:00:07.9]} 38. Kg2 {[%clk 0:00:33.2]} 38... Be5
{[%clk 0:00:06.5]} 39. Rh1 {[%clk 0:00:30.5]} 39... Kg7 {[%clk 0:00:07.1]} 40.
a4 {[%clk 0:00:25.7]} 40... Rh8 {[%clk 0:00:06.4]} 41. Re1 {[%clk 0:00:25.3]}
41... Kf6 {[%clk 0:00:05.9]} 42. a5 {[%clk 0:00:25]} 1-0

[Event "Early-Titled-Tuesday-Blitz-January-23-2024"]
[Site "Chess.com"]
[Date "2024.01.23"]
[Round "9"]
[White "Roman_Ovetchkin"]
[Black "deribas12345"]
[Result "1-0"]
[WhiteElo "2630"]
[BlackElo "2455"]
[TimeControl "180+1"]
[EndTime "9:45:46 PST"]
[Termination "Roman_Ovetchkin won by resignation"]

1. d4 {[%clk 0:03:00.9]} 1... Nf6 {[%clk 0:02:56.9]} 2. c4 {[%clk 0:03:00.8]}
2... c5 {[%clk 0:02:55.7]} 3. d5 {[%clk 0:03:00.7]} 3... b5 {[%clk 0:02:55.8]}
4. Qc2 {[%clk 0:02:58.5]} 4... Na6 {[%clk 0:02:54.6]} 5. a3 {[%clk 0:02:52]}
5... b4 {[%clk 0:02:51.7]} 6. e4 {[%clk 0:02:51.5]} 6... d6 {[%clk 0:02:51]} 7.
h3 {[%clk 0:02:49.9]} 7... g6 {[%clk 0:02:49.9]} 8. Nf3 {[%clk 0:02:49.6]} 8...
Bg7 {[%clk 0:02:49.8]} 9. Bd3 {[%clk 0:02:34.7]} 9... bxa3 {[%clk 0:02:36.9]}
10. Rxa3 {[%clk 0:02:34.2]} 10... Nb4 {[%clk 0:02:36.3]} 11. Qe2 {[%clk
0:02:34.2]} 11... O-O {[%clk 0:02:34.9]} 12. O-O {[%clk 0:02:32.2]} 12... e6
{[%clk 0:02:30.8]} 13. Nc3 {[%clk 0:02:31.8]} 13... exd5 {[%clk 0:02:30.4]} 14.
cxd5 {[%clk 0:02:31.8]} 14... Re8 {[%clk 0:02:27.2]} 15. Bc4 {[%clk 0:02:17.8]}
15... Bf5 {[%clk 0:01:42.7]} 16. Bg5 {[%clk 0:01:48.6]} 16... h6 {[%clk
0:01:41.8]} 17. Bxf6 {[%clk 0:01:47.1]} 17... Qxf6 {[%clk 0:01:42.7]} 18. Rfa1
{[%clk 0:01:16.5]} 18... Re7 {[%clk 0:01:39.6]} 19. e5 {[%clk 0:01:06.2]} 19...
dxe5 {[%clk 0:01:34.1]} 20. Ne4 {[%clk 0:01:06.8]} 20... Bxe4 {[%clk 0:01:11.8]}
21. Qxe4 {[%clk 0:01:07.7]} 21... Qf4 {[%clk 0:01:12.4]} 22. Qxf4 {[%clk
0:00:33.8]} 22... exf4 {[%clk 0:01:12.1]} 23. d6 {[%clk 0:00:33.4]} 23... Rd7
{[%clk 0:01:09.1]} 24. Rd1 {[%clk 0:00:34.1]} 24... Bxb2 {[%clk 0:00:52]} 25.
Ra5 {[%clk 0:00:33.4]} 25... Bd4 {[%clk 0:00:31.9]} 26. Nxd4 {[%clk 0:00:28.9]}
26... Rxd6 {[%clk 0:00:32.2]} 27. Rxc5 {[%clk 0:00:27.2]} 27... Rad8 {[%clk
0:00:30.9]} 28. Rc7 {[%clk 0:00:27.1]} 28... Rxd4 {[%clk 0:00:21.8]} 29. Bxf7+
{[%clk 0:00:26.2]} 29... Kf8 {[%clk 0:00:18.1]} 30. Rxd4 {[%clk 0:00:25.2]}
30... Rxd4 {[%clk 0:00:19]} 31. Bxg6 {[%clk 0:00:24.4]} 31... a5 {[%clk
0:00:15.8]} 32. Ra7 {[%clk 0:00:20.6]} 32... Rd1+ {[%clk 0:00:13.9]} 33. Kh2
{[%clk 0:00:20.1]} 33... Ra1 {[%clk 0:00:13.4]} 34. Rf7+ {[%clk 0:00:15.7]}
34... Kg8 {[%clk 0:00:13.7]} 35. Rxf4 {[%clk 0:00:16.3]} 35... Nc6 {[%clk
0:00:13.8]} 36. Be4 {[%clk 0:00:15.8]} 36... Ne5 {[%clk 0:00:12.9]} 37. Rf5
{[%clk 0:00:15.4]} 37... Nd7 {[%clk 0:00:08.1]} 38. Bc6 {[%clk 0:00:15.2]} 38...
Nb6 {[%clk 0:00:06.3]} 39. Rb5 {[%clk 0:00:13.6]} 39... Na4 {[%clk 0:00:05.1]}
40. Rxa5 {[%clk 0:00:13.2]} 40... Ra3 {[%clk 0:00:04.9]} 41. Rxa4 {[%clk
0:00:12.7]} 1-0

[Event "Early-Titled-Tuesday-Blitz-January-23-2024"]
[Site "Chess.com"]
[Date "2024.01.23"]
[Round "9"]
[White "bazar-wokzal"]
[Black "Gabrielian_Artur"]
[Result "1-0"]
[WhiteElo "2576"]
[BlackElo "2758"]
[TimeControl "180+1"]
[EndTime "9:45:50 PST"]
[Termination "bazar-wokzal won by checkmate"]

1. e4 {[%clk 0:03:00.9]} 1... c5 {[%clk 0:02:59.2]} 2. c3 {[%clk 0:03:00.7]}
2... Nc6 {[%clk 0:02:59.3]} 3. d4 {[%clk 0:03:00.7]} 3... d5 {[%clk 0:02:59.4]}
4. dxc5 {[%clk 0:02:54.4]} 4... dxe4 {[%clk 0:02:58.4]} 5. Qxd8+ {[%clk
0:02:54.3]} 5... Nxd8 {[%clk 0:02:57.9]} 6. Na3 {[%clk 0:02:46.2]} 6... Ne6
{[%clk 0:02:51.6]} 7. Bb5+ {[%clk 0:02:39.6]} 7... Bd7 {[%clk 0:02:50.1]} 8.
Bxd7+ {[%clk 0:02:39.9]} 8... Kxd7 {[%clk 0:02:50.4]} 9. b4 {[%clk 0:02:40.4]}
9... a5 {[%clk 0:02:42.6]} 10. Nc4 {[%clk 0:02:38.1]} 10... Kc7 {[%clk
0:02:32.4]} 11. Ne2 {[%clk 0:02:32.3]} 11... axb4 {[%clk 0:02:30.2]} 12. cxb4
{[%clk 0:02:32.3]} 12... g6 {[%clk 0:02:12.7]} 13. Bb2 {[%clk 0:02:31.2]} 13...
f6 {[%clk 0:02:04.3]} 14. Nc3 {[%clk 0:02:25.4]} 14... Nh6 {[%clk 0:01:52]} 15.
O-O {[%clk 0:02:14.1]} 15... Nf5 {[%clk 0:01:37.2]} 16. Rfe1 {[%clk 0:02:09.7]}
16... Ned4 {[%clk 0:01:31.7]} 17. Nb6 {[%clk 0:01:56.6]} 17... Rd8 {[%clk
0:01:27.1]} 18. Rxe4 {[%clk 0:01:54.8]} 18... e5 {[%clk 0:01:16]} 19. Ncd5+
{[%clk 0:01:45.9]} 19... Kc6 {[%clk 0:01:08]} 20. Nxf6 {[%clk 0:01:45.2]} 20...
Bg7 {[%clk 0:01:04]} 21. Ng4 {[%clk 0:01:43.3]} 21... Rhe8 {[%clk 0:00:59.1]}
22. h3 {[%clk 0:01:37.4]} 22... h5 {[%clk 0:00:53.2]} 23. Ne3 {[%clk 0:01:36.4]}
23... Nxe3 {[%clk 0:00:53.5]} 24. fxe3 {[%clk 0:01:35]} 24... Ne2+ {[%clk
0:00:50]} 25. Kh2 {[%clk 0:01:28]} 25... Rd2 {[%clk 0:00:49.8]} 26. Rb1 {[%clk
0:01:24.8]} 26... Rf8 {[%clk 0:00:47.7]} 27. Nc4 {[%clk 0:01:20.4]} 27... Rc2
{[%clk 0:00:45.5]} 28. b5+ {[%clk 0:01:18.4]} 28... Kd5 {[%clk 0:00:42.7]} 29.
Nd6 {[%clk 0:01:13.5]} 29... Rf2 {[%clk 0:00:39.5]} 30. Rd1+ {[%clk 0:01:07.3]}
30... Ke6 {[%clk 0:00:39.5]} 31. Nc4 {[%clk 0:00:49]} 31... Ng3 {[%clk
0:00:39.3]} 32. Rd6+ {[%clk 0:00:15.2]} 32... Ke7 {[%clk 0:00:39.4]} 33. Kxg3
{[%clk 0:00:11.4]} 33... Rxg2+ {[%clk 0:00:37.7]} 34. Kh4 {[%clk 0:00:11.9]}
34... Bf6+ {[%clk 0:00:28.7]} 35. Rxf6 {[%clk 0:00:11.4]} 35... Kxf6 {[%clk
0:00:29.3]} 36. Bxe5+ {[%clk 0:00:11.5]} 36... Kf5 {[%clk 0:00:23.1]} 37. Nd6+
{[%clk 0:00:10.5]} 37... Ke6 {[%clk 0:00:23.2]} 38. Bd4+ {[%clk 0:00:09.9]}
38... Kd7 {[%clk 0:00:16.4]} 39. Nxb7 {[%clk 0:00:10.1]} 39... Rcf2 {[%clk
0:00:10.3]} 40. c6+ {[%clk 0:00:10.3]} 40... Kc7 {[%clk 0:00:10.9]} 41. Re7+
{[%clk 0:00:09.7]} 41... Kc8 {[%clk 0:00:09.5]} 42. Nd6+ {[%clk 0:00:09.1]}
42... Kb8 {[%clk 0:00:09.8]} 43. c7+ {[%clk 0:00:09.6]} 43... Ka8 {[%clk
0:00:10.3]} 44. c8=Q# {[%clk 0:00:10]} 1-0

[Event "Early-Titled-Tuesday-Blitz-January-23-2024"]
[Site "Chess.com"]
[Date "2024.01.23"]
[Round "9"]
[White "FREZZY23"]
[Black "Sanyura"]
[Result "1-0"]
[WhiteElo "2499"]
[BlackElo "2615"]
[TimeControl "180+1"]
[EndTime "9:45:51 PST"]
[Termination "FREZZY23 won by resignation"]

1. Nf3 {[%clk 0:02:59.1]} 1... Nf6 {[%clk 0:02:59.7]} 2. g3 {[%clk 0:02:59.1]}
2... g6 {[%clk 0:03:00.6]} 3. Bg2 {[%clk 0:02:58.7]} 3... Bg7 {[%clk 0:03:01.5]}
4. O-O {[%clk 0:02:56.6]} 4... O-O {[%clk 0:03:02.4]} 5. d4 {[%clk 0:02:54.3]}
5... d6 {[%clk 0:03:02.7]} 6. c4 {[%clk 0:02:53.2]} 6... Nbd7 {[%clk 0:03:03.3]}
7. Nc3 {[%clk 0:02:53]} 7... e5 {[%clk 0:03:03.4]} 8. h3 {[%clk 0:02:53.5]} 8...
exd4 {[%clk 0:03:03.8]} 9. Nxd4 {[%clk 0:02:53.7]} 9... Nc5 {[%clk 0:03:04.7]}
10. e4 {[%clk 0:02:53.4]} 10... Re8 {[%clk 0:03:04.6]} 11. Re1 {[%clk 0:02:52]}
11... Bd7 {[%clk 0:03:04.6]} 12. Bg5 {[%clk 0:02:48.5]} 12... h6 {[%clk
0:03:03.9]} 13. Bf4 {[%clk 0:02:48.7]} 13... g5 {[%clk 0:03:01.3]} 14. Bc1
{[%clk 0:02:48.2]} 14... c6 {[%clk 0:02:58.3]} 15. b3 {[%clk 0:02:46.7]} 15...
Qa5 {[%clk 0:02:47.1]} 16. Bb2 {[%clk 0:02:42.6]} 16... Re7 {[%clk 0:02:47.2]}
17. Qc2 {[%clk 0:02:41.7]} 17... Rae8 {[%clk 0:02:47]} 18. a3 {[%clk 0:02:26.1]}
18... Qb6 {[%clk 0:01:33.2]} 19. Rad1 {[%clk 0:02:20.5]} 19... a5 {[%clk
0:01:16.4]} 20. Kh2 {[%clk 0:01:50.1]} 20... Nh7 {[%clk 0:00:35.4]} 21. Nf3
{[%clk 0:01:31.8]} 21... Qxb3 {[%clk 0:00:32.8]} 22. Qxb3 {[%clk 0:01:28.1]}
22... Nxb3 {[%clk 0:00:33.7]} 23. Rxd6 {[%clk 0:01:28.6]} 23... Be6 {[%clk
0:00:30.6]} 24. Bf1 {[%clk 0:01:06.8]} 24... Nf6 {[%clk 0:00:25]} 25. e5 {[%clk
0:01:03.1]} 25... Nd7 {[%clk 0:00:25]} 26. Ne4 {[%clk 0:00:57.3]} 26... Nbc5
{[%clk 0:00:24.1]} 27. Nf6+ {[%clk 0:00:49.1]} 27... Kf8 {[%clk 0:00:14.4]} 28.
Nh7+ {[%clk 0:00:46.9]} 28... Kg8 {[%clk 0:00:14.4]} 29. Nf6+ {[%clk 0:00:47]}
29... Kf8 {[%clk 0:00:14.9]} 30. Nxe8 {[%clk 0:00:47.4]} 30... Rxe8 {[%clk
0:00:14.8]} 31. Bc3 {[%clk 0:00:42.2]} 31... Ra8 {[%clk 0:00:13]} 32. h4 {[%clk
0:00:37]} 32... gxh4 {[%clk 0:00:08.6]} 33. Nxh4 {[%clk 0:00:34.5]} 33... Ke8
{[%clk 0:00:08.9]} 34. f4 {[%clk 0:00:31]} 34... Na4 {[%clk 0:00:06.2]} 35. Ba1
{[%clk 0:00:29.4]} 35... Bf8 {[%clk 0:00:06.6]} 36. f5 {[%clk 0:00:27.4]} 36...
Bxd6 {[%clk 0:00:03]} 37. fxe6 {[%clk 0:00:27.7]} 37... fxe6 {[%clk 0:00:02.1]}
38. exd6 {[%clk 0:00:27.3]} 38... Ndc5 {[%clk 0:00:02.6]} 39. Ng6 {[%clk
0:00:19.7]} 39... Kd7 {[%clk 0:00:03.5]} 40. Rd1 {[%clk 0:00:19]} 40... Rg8
{[%clk 0:00:03.2]} 41. Ne5+ {[%clk 0:00:19.1]} 41... Kd8 {[%clk 0:00:03.8]} 42.
d7 {[%clk 0:00:18.9]} 42... Ke7 {[%clk 0:00:02.9]} 43. Ng6+ {[%clk 0:00:17.3]}
43... Kd8 {[%clk 0:00:02.8]} 44. Bf6+ {[%clk 0:00:17.5]} 44... Kc7 {[%clk
0:00:02.5]} 45. d8=Q+ {[%clk 0:00:17.9]} 45... Rxd8 {[%clk 0:00:03.4]} 46. Bxd8+
{[%clk 0:00:18]} 1-0

[Event "Early-Titled-Tuesday-Blitz-January-23-2024"]
[Site "Chess.com"]
[Date "2024.01.23"]
[Round "9"]
[White "Sanan_Sjugirov"]
[Black "scarabee43"]
[Result "1-0"]
[WhiteElo "3011"]
[BlackElo "2814"]
[TimeControl "180+1"]
[EndTime "9:45:52 PST"]
[Termination "Sanan_Sjugirov won by checkmate"]

1. Nf3 {[%clk 0:02:56.2]} 1... d5 {[%clk 0:02:59.4]} 2. g3 {[%clk 0:02:56.9]}
2... Nf6 {[%clk 0:02:59.8]} 3. Bg2 {[%clk 0:02:57.5]} 3... e6 {[%clk 0:02:59.6]}
4. O-O {[%clk 0:02:57.4]} 4... Be7 {[%clk 0:03:00.3]} 5. c4 {[%clk 0:02:56.1]}
5... O-O {[%clk 0:03:00.3]} 6. b3 {[%clk 0:02:56.1]} 6... Nbd7 {[%clk
0:02:59.4]} 7. Bb2 {[%clk 0:02:55.5]} 7... b6 {[%clk 0:02:59.8]} 8. cxd5 {[%clk
0:02:54.9]} 8... exd5 {[%clk 0:02:59.4]} 9. d4 {[%clk 0:02:54.5]} 9... Bb7
{[%clk 0:02:58.9]} 10. Nc3 {[%clk 0:02:55.2]} 10... Re8 {[%clk 0:02:58.6]} 11.
Rc1 {[%clk 0:02:54.5]} 11... a6 {[%clk 0:02:57.7]} 12. e3 {[%clk 0:02:54.4]}
12... Bd6 {[%clk 0:02:57]} 13. Re1 {[%clk 0:02:54.5]} 13... Nf8 {[%clk
0:02:56.9]} 14. Re2 {[%clk 0:02:49.5]} 14... Ng6 {[%clk 0:02:50.2]} 15. Rec2
{[%clk 0:02:50]} 15... h5 {[%clk 0:02:49.5]} 16. Ne2 {[%clk 0:02:26.4]} 16...
Rc8 {[%clk 0:02:37.3]} 17. Nf4 {[%clk 0:02:22]} 17... Nxf4 {[%clk 0:02:34.3]}
18. exf4 {[%clk 0:02:22.9]} 18... Ne4 {[%clk 0:02:32.1]} 19. Ne5 {[%clk
0:02:20.7]} 19... h4 {[%clk 0:02:30.1]} 20. Qh5 {[%clk 0:02:01.1]} 20... Qe7
{[%clk 0:02:27.7]} 21. Re2 {[%clk 0:01:52.2]} 21... hxg3 {[%clk 0:02:25.5]} 22.
hxg3 {[%clk 0:01:53.1]} 22... a5 {[%clk 0:02:15]} 23. Bxe4 {[%clk 0:01:48.1]}
23... dxe4 {[%clk 0:02:14.2]} 24. f3 {[%clk 0:01:49]} 24... g6 {[%clk
0:01:40.8]} 25. Qh6 {[%clk 0:01:35.7]} 25... Qf8 {[%clk 0:01:40]} 26. Qxf8+
{[%clk 0:01:32.5]} 26... Bxf8 {[%clk 0:01:35.6]} 27. fxe4 {[%clk 0:01:32.4]}
27... f6 {[%clk 0:01:36]} 28. Nc6 {[%clk 0:01:28.1]} 28... Bc5 {[%clk
0:01:29.2]} 29. dxc5 {[%clk 0:01:24.2]} 29... Bxc6 {[%clk 0:01:29.7]} 30. Bxf6
{[%clk 0:01:14.3]} 30... Kf7 {[%clk 0:01:12.2]} 31. Be5 {[%clk 0:01:13.1]} 31...
b5 {[%clk 0:01:08.4]} 32. Kf2 {[%clk 0:01:08]} 32... b4 {[%clk 0:00:46.8]} 33.
Ke3 {[%clk 0:01:03.7]} 33... Red8 {[%clk 0:00:42.2]} 34. Rh2 {[%clk 0:00:50.6]}
34... Bb5 {[%clk 0:00:42.3]} 35. f5 {[%clk 0:00:47.3]} 35... g5 {[%clk
0:00:24.4]} 36. Rh7+ {[%clk 0:00:44]} 36... Ke8 {[%clk 0:00:22]} 37. Bd4 {[%clk
0:00:38.2]} 37... a4 {[%clk 0:00:16.1]} 38. c6 {[%clk 0:00:33.3]} 38... axb3
{[%clk 0:00:15.9]} 39. axb3 {[%clk 0:00:34.2]} 39... Ra8 {[%clk 0:00:13.5]} 40.
Rc5 {[%clk 0:00:30]} 40... Bf1 {[%clk 0:00:12]} 41. Re5+ {[%clk 0:00:15.1]}
41... Kf8 {[%clk 0:00:12.4]} 42. f6 {[%clk 0:00:08.3]} 42... Kg8 {[%clk
0:00:05.7]} 43. Ree7 {[%clk 0:00:08.3]} 43... Ra2 {[%clk 0:00:04.7]} 44. Reg7+
{[%clk 0:00:08.4]} 44... Kf8 {[%clk 0:00:05.2]} 45. Rh8# {[%clk 0:00:09.3]} 1-0

[Event "Early-Titled-Tuesday-Blitz-January-23-2024"]
[Site "Chess.com"]
[Date "2024.01.23"]
[Round "9"]
[White "omulcafea"]
[Black "mertfelin"]
[Result "1-0"]
[WhiteElo "2449"]
[BlackElo "2265"]
[TimeControl "180+1"]
[EndTime "9:45:52 PST"]
[Termination "omulcafea won by resignation"]

1. d4 {[%clk 0:02:11.5]} 1... d5 {[%clk 0:02:12.8]} 2. Nf3 {[%clk 0:02:07.8]}
2... Nf6 {[%clk 0:02:13]} 3. c3 {[%clk 0:02:06.5]} 3... e6 {[%clk 0:02:11.3]} 4.
g3 {[%clk 0:02:06.7]} 4... Be7 {[%clk 0:02:09.7]} 5. Bg2 {[%clk 0:02:06.6]} 5...
O-O {[%clk 0:02:10.5]} 6. O-O {[%clk 0:02:05.7]} 6... b6 {[%clk 0:02:09.5]} 7.
a4 {[%clk 0:02:05.6]} 7... a5 {[%clk 0:02:06]} 8. c4 {[%clk 0:02:02.3]} 8... Bb7
{[%clk 0:02:03.7]} 9. Ne5 {[%clk 0:02:01.6]} 9... Nbd7 {[%clk 0:01:56.8]} 10.
Nc3 {[%clk 0:02:00.6]} 10... Ne4 {[%clk 0:01:39.2]} 11. Nxe4 {[%clk 0:01:48.5]}
11... dxe4 {[%clk 0:01:39.4]} 12. Bf4 {[%clk 0:01:35.1]} 12... f6 {[%clk
0:01:31.9]} 13. Nxd7 {[%clk 0:01:32]} 13... Qxd7 {[%clk 0:01:32.8]} 14. d5
{[%clk 0:01:26.4]} 14... e5 {[%clk 0:01:26.2]} 15. Bd2 {[%clk 0:01:21.1]} 15...
f5 {[%clk 0:01:26.7]} 16. Bc3 {[%clk 0:01:21.1]} 16... Bd6 {[%clk 0:01:23.8]}
17. f3 {[%clk 0:01:01.1]} 17... exf3 {[%clk 0:01:13]} 18. exf3 {[%clk
0:01:00.7]} 18... Qe7 {[%clk 0:01:13.1]} 19. Qd3 {[%clk 0:00:55.5]} 19... Rae8
{[%clk 0:01:09.4]} 20. Rae1 {[%clk 0:00:54.7]} 20... Qf6 {[%clk 0:01:06.7]} 21.
Kh1 {[%clk 0:00:52.7]} 21... Qg6 {[%clk 0:00:55.7]} 22. Re2 {[%clk 0:00:48.8]}
22... Re7 {[%clk 0:00:54.8]} 23. Rfe1 {[%clk 0:00:48.7]} 23... Rfe8 {[%clk
0:00:55.5]} 24. Bh3 {[%clk 0:00:47.8]} 24... Bc8 {[%clk 0:00:55.9]} 25. Qc2
{[%clk 0:00:47]} 25... Qf7 {[%clk 0:00:54.6]} 26. Bg2 {[%clk 0:00:43.3]} 26...
Bd7 {[%clk 0:00:50]} 27. Qd2 {[%clk 0:00:41.2]} 27... Bxa4 {[%clk 0:00:45.4]}
28. b4 {[%clk 0:00:41.8]} 28... axb4 {[%clk 0:00:38.5]} 29. Bxb4 {[%clk
0:00:42.7]} 29... Bxb4 {[%clk 0:00:31.3]} 30. Qxb4 {[%clk 0:00:43.6]} 30... Bd7
{[%clk 0:00:32]} 31. Rd2 {[%clk 0:00:32.3]} 31... Bc8 {[%clk 0:00:28.2]} 32. d6
{[%clk 0:00:30.3]} 32... cxd6 {[%clk 0:00:28.7]} 33. Rxd6 {[%clk 0:00:31.2]}
33... Bb7 {[%clk 0:00:25.3]} 34. Rxb6 {[%clk 0:00:30.9]} 34... Rc7 {[%clk
0:00:21.1]} 35. c5 {[%clk 0:00:30.9]} 35... Bd5 {[%clk 0:00:18.9]} 36. Rd6
{[%clk 0:00:30.3]} 36... Rd7 {[%clk 0:00:17.3]} 37. Rd1 {[%clk 0:00:26.6]} 37...
Rxd6 {[%clk 0:00:17.1]} 38. cxd6 {[%clk 0:00:27.3]} 38... Rd8 {[%clk 0:00:16.5]}
39. Qc5 {[%clk 0:00:27]} 39... Bb7 {[%clk 0:00:16.3]} 40. Qxe5 {[%clk
0:00:27.4]} 40... Qd7 {[%clk 0:00:16.4]} 41. h4 {[%clk 0:00:22.3]} 41... h6
{[%clk 0:00:16.5]} 42. Qe7 {[%clk 0:00:22.2]} 42... Bc6 {[%clk 0:00:16.8]} 43.
Qe5 {[%clk 0:00:21.5]} 43... Re8 {[%clk 0:00:16.2]} 44. Qc5 {[%clk 0:00:21.2]}
44... Re6 {[%clk 0:00:16.9]} 45. Kh2 {[%clk 0:00:20]} 45... Rf6 {[%clk
0:00:17.4]} 46. f4 {[%clk 0:00:20.4]} 46... Bxg2 {[%clk 0:00:17.4]} 47. Kxg2
{[%clk 0:00:21.3]} 47... Re6 {[%clk 0:00:17.9]} 48. Qc7 {[%clk 0:00:21.1]} 1-0